Cogmind - Beta 9.3 --- EXPLORER MODE // 2019.12.17 @ 17:37:55 // Winter2019/RPGLIKE Player: ApolliniaD Result: Self-destructed Performance ------------- Evolutions (4) 2000 Regions Visited (19) 3800 Robots Destroyed (58) 290 Value Destroyed (808) 808 Prototype IDs (244) 4880 Alien Tech Used (0) 0 Bonus (2257) 2257 TOTAL SCORE: 14035 Bonus ------- Follower Combat Kills 267 Aligned with FarCom 300 Met Data Miner 300 Used Data Conduit 3000 Friendly Fire -1610 Cogmind --------- Core Integrity 600/600 Matter 300/300 Energy 1000/1000 System Corruption 0% Temperature Cool (0) Movement Flying (35) Location -6/Zion Parts ------- > --- POWER (1) -------- (None) > --- PROPULSION (1) --- Improved VTOL Module > --- UTILITY (18) ----- Advanced Signal Interpreter Experimental Terrain Scanner Advanced Core Analyzer Advanced Transmission Jammer Experimental Utility Shielding 8R-AWN's Armor/EX System Mapper Deep Network Scanner Quantum Router Trap Reconfigurator > --- WEAPON (6) ------- 8R-AWN's Boregun Improved Datajack Field Lobotomy Kit Greatsword > --- INVENTORY (30) --- Phasing AFG AS-neutralizer No. 17b Makeshift Hammer Katana Self-destruct Interrupter (50) Deploy-a-Sentry Peak State ------------ > --- POWER ------------ (None) > --- PROPULSION ------- Improved VTOL Module > --- UTILITY ---------- Advanced Signal Interpreter Experimental Terrain Scanner Advanced Core Analyzer Advanced Transmission Jammer Experimental Utility Shielding 8R-AWN's Armor/EX System Mapper Deep Network Scanner Quantum Router Trap Reconfigurator Phasing AFG > --- WEAPON ----------- 8R-AWN's Boregun Field Lobotomy Kit Greatsword > --- INVENTORY -------- AS-neutralizer No. 17b Improved Datajack Makeshift Hammer Katana Self-destruct Interrupter Deploy-a-Sentry [Rating: 135] Favorites ----------- Power None Propulsion Improved VTOL Module Leg Aluminum Leg Hover Unit Combat Antigrav System Flight Unit Improved VTOL Module Utility 8R-AWN's Armor/EX Device Advanced Transmission Jammer Processor Advanced Core Analyzer Hackware Quantum Router Protection 8R-AWN's Armor/EX Weapon 8R-AWN's Boregun Energy Gun EM Shotgun Energy Cannon Advanced Beam Cannon Ballistic Gun 8R-AWN's Boregun Special Weapon Field Lobotomy Kit Slashing Weapon Greatsword Special Melee Weapon Improved Datajack Build | -11 -10 -10 -9 -9 -9 -8 -8 -8 -7 -7 -7 -7 -6 -6 -6 -6 -6 -6 -6 ------- Run | Scr Mat Min Mat Min Exi Min Mat Sto Fac Low Low Dat Pro Fac Was Fac Low Low Zio Slots Evolved 22 | 22 . . . . . . . . . . . . . . . . . . . Power . | . . . . . . . . . . . . . . . . . . . . Propulsion . | . . . . . . . . . . . . . . . . . . . . Utility 17 | 17 . . . . . . . . . . . . . . . . . . . Weapon 5 | 5 . . . . . . . . . . . . . . . . . . . Parts Attached 43 | 7 6 1 4 . 12 . . 4 4 . . . 3 . . . . . 2 Power . | . . . . . . . . . . . . . . . . . . . . Engine . | . . . . . . . . . . . . . . . . . . . . Core . | . . . . . . . . . . . . . . . . . . . . Reactor . | . . . . . . . . . . . . . . . . . . . . Propulsion 6 | . 1 1 . . 2 . . 2 . . . . . . . . . . . Treads . | . . . . . . . . . . . . . . . . . . . . Leg 2 | . 1 . . . 1 . . . . . . . . . . . . . . Wheel . | . . . . . . . . . . . . . . . . . . . . Hover 1 | . . . . . 1 . . . . . . . . . . . . . . Flight 3 | . . 1 . . . . . 2 . . . . . . . . . . . Utility 21 | 4 1 . . . 8 . . 1 3 . . . 3 . . . . . 1 Device 8 | 2 . . . . 4 . . . 1 . . . . . . . . . 1 Storage . | . . . . . . . . . . . . . . . . . . . . Processor 6 | . 1 . . . 3 . . 1 1 . . . . . . . . . . Hackware 3 | . . . . . . . . . . . . . 3 . . . . . . Protection 4 | 2 . . . . 1 . . . 1 . . . . . . . . . . Artifact . | . . . . . . . . . . . . . . . . . . . . Weapon 16 | 3 4 . 4 . 2 . . 1 1 . . . . . . . . . 1 Energy Gun 9 | 2 4 . 2 . . . . 1 . . . . . . . . . . . Energy Cannon 2 | . . . 2 . . . . . . . . . . . . . . . . Ballistic Gun 2 | 1 . . . . 1 . . . . . . . . . . . . . . Ballistic Cannon . | . . . . . . . . . . . . . . . . . . . . Launcher . | . . . . . . . . . . . . . . . . . . . . Special Weapon 1 | . . . . . 1 . . . . . . . . . . . . . . Impact Weapon . | . . . . . . . . . . . . . . . . . . . . Slashing Weapon 1 | . . . . . . . . . 1 . . . . . . . . . . Piercing Weapon . | . . . . . . . . . . . . . . . . . . . . Special Melee Weapon 1 | . . . . . . . . . . . . . . . . . . . 1 Unidentified Prototypes 15 | . . . 2 . 6 . . 3 . . . . 3 . . . . . 1 Parts Lost 3 | . . . 1 . 2 . . . . . . . . . . . . . . Power . | . . . . . . . . . . . . . . . . . . . . Propulsion 1 | . . . 1 . . . . . . . . . . . . . . . . Utility 1 | . . . . . 1 . . . . . . . . . . . . . . Weapon 1 | . . . . . 1 . . . . . . . . . . . . . . Highest Loss Streak 2 | . . . 1 . 2 . . . . . . . . . . . . . . Average Slot Usage (%) 38 | . 29 36 37 34 24 23 23 25 33 42 42 42 52 53 53 53 53 53 55 Flight 1 | . . 2 2 . . . . 1 3 3 3 3 3 3 3 3 3 3 3 Device 8 | . 7 7 7 7 4 7 7 7 8 11 11 11 11 11 11 11 11 11 11 Processor 4 | . . . . . . 3 3 3 7 7 7 7 7 7 7 7 7 7 7 Hackware 3 | . . . . . . . . . . . . . 10 11 11 11 11 11 11 Protection 4 | . 3 3 3 3 2 3 3 3 5 7 7 7 7 7 7 7 7 7 7 Energy Gun 4 | . 14 19 19 15 9 . . . . . . . . . . . . . . Ballistic Gun 2 | . 3 3 3 3 2 3 3 3 3 3 3 3 3 3 3 3 3 3 3 Special Weapon 2 | . . . . . . 3 3 3 3 3 3 3 3 3 3 3 3 3 3 Slashing Weapon 1 | . . . . . . . . . . 3 3 3 3 3 3 3 3 3 3 Naked Turns 5 | . . . . . 5 . . . . . . . . . . . . . . Heaviest Build 48 | 11 20 20 22 22 40 40 40 40 47 47 47 47 47 47 47 47 47 47 48 Greatest Support 315 | 303 303 304 304 303 315 303 303 306 306 306 306 306 306 306 306 306 306 306 306 Greatest Overweight (x) . | . . . . . . . . . . . . . . . . . . . . Average Overweight (x) . | . . . . . . . . . . . . . . . . . . . . Largest Inventory Capacity 30 | 30 30 30 30 30 30 30 30 30 30 30 30 30 30 30 30 30 30 30 30 Average Capacity 29 | 22 30 30 30 30 30 30 30 30 30 30 30 30 30 30 30 30 30 30 30 Most Carried 7 | . 2 3 4 4 7 4 4 4 4 4 4 4 4 4 4 5 5 5 7 Average Carried 4 | . . 2 3 4 5 4 4 4 4 4 4 4 4 4 4 4 5 5 6 Final Capacity 30 | 30 30 30 30 30 30 30 30 30 30 30 30 30 30 30 30 30 30 30 30 Final Carried 6 | . 2 3 4 4 4 4 4 4 4 4 4 4 4 4 4 5 5 5 6 Class Distribution -------------------- 43% | Wizard-Ninja 33% | Wizard-Scout 21% | Wizard-Mutant Dominant Class ---------------- Wizard-Scout | -10/Materials Wizard-Scout | -10/Mines Wizard-Scout | -9/Materials Wizard-Scout | -9/Mines Wizard-Scout | -9/Exiles Wizard-Mutant | -8/Mines Wizard-Mutant | -8/Materials Wizard-Mutant | -8/Storage Wizard-Scout | -7/Factory Wizard-Ninja | -7/Lower Caves Wizard-Ninja | -7/Lower Caves Wizard-Ninja | -7/Data Miner Wizard-Ninja | -6/Proximity Caves Wizard-Ninja | -6/Factory Wizard-Ninja | -6/Waste Wizard-Ninja | -6/Factory Wizard-Ninja | -6/Lower Caves Wizard-Ninja | -6/Lower Caves Wizard-Ninja | -6/Zion Resources | -11 -10 -10 -9 -9 -9 -8 -8 -8 -7 -7 -7 -7 -6 -6 -6 -6 -6 -6 -6 ----------- Run | Scr Mat Min Mat Min Exi Min Mat Sto Fac Low Low Dat Pro Fac Was Fac Low Low Zio Matter Collected 30 | 30 . . . . . . . . . . . . . . . . . . . Remotely . | . . . . . . . . . . . . . . . . . . . . Salvage Created 2197 | . 193 232 777 . 602 . 75 288 . . . . 30 . . . . . . Parts 164 | . 12 16 41 . 70 . 6 15 . . . . 4 . . . . . . Haulers Intercepted 6 | . 1 . 2 . . . . 3 . . . . . . . . . . . Recyclers Shooed 1 | . . . . . . . 1 . . . . . . . . . . . . Parts Field Recycled . | . . . . . . . . . . . . . . . . . . . . Retrieved Matter . | . . . . . . . . . . . . . . . . . . . . Parts Self-Destructed . | . . . . . . . . . . . . . . . . . . . . Prevented . | . . . . . . . . . . . . . . . . . . . . Kills | -11 -10 -10 -9 -9 -9 -8 -8 -8 -7 -7 -7 -7 -6 -6 -6 -6 -6 -6 -6 ------- Run | Scr Mat Min Mat Min Exi Min Mat Sto Fac Low Low Dat Pro Fac Was Fac Low Low Zio Combat Hostiles Destroyed 26 | . 5 2 9 . 8 . 2 . . . . . . . . . . . . Melee 1 | . . . . . 1 . . . . . . . . . . . . . . Guns 25 | . 5 2 9 . 7 . 2 . . . . . . . . . . . . Classes Destroyed 16 | . 3 3 5 . 3 . 1 1 . . . . . . . . . . . Worker 4 | . . . 3 . . . . 1 . . . . . . . . . . . Builder 1 | . . 1 . . . . . . . . . . . . . . . . . Tunneler 3 | . . 3 . . . . . . . . . . . . . . . . . Hauler 6 | . 1 . 2 . . . . 3 . . . . . . . . . . . Recycler 2 | . . 1 . . . . . 1 . . . . . . . . . . . Operator 1 | . . . . . . . . 1 . . . . . . . . . . . Turret 1 | . . . . . 1 . . . . . . . . . . . . . . Watcher 2 | . . . 2 . . . . . . . . . . . . . . . . Swarmer 6 | . 4 2 . . . . . . . . . . . . . . . . . Grunt 5 | . 1 . 4 . . . . . . . . . . . . . . . . Brawler 1 | . . . 1 . . . . . . . . . . . . . . . . Duelist 1 | . . . 1 . . . . . . . . . . . . . . . . Sentry 4 | . . . 3 . . . 1 . . . . . . . . . . . . Hunter 1 | . . . . . . . 1 . . . . . . . . . . . . Zionite 8 | . . . . . 8 . . . . . . . . . . . . . . Assembled 7 | . . . . . 7 . . . . . . . . . . . . . . Best Kill Streak 11 | . 4 5 10 . 11 . 2 3 . . . . . . . . . . . Combat Bots Only 7 | . 4 2 6 . 7 . 2 . . . . . . . . . . . . Max Kills in Single Turn 4 | . 2 2 4 . 2 . 1 2 . . . . 1 . . . . . . Gunslinging 1 | . 1 1 1 . . . . . . . . . . . . . . . . Exploded . | . . . . . . . . . . . . . . . . . . . . Melee 1 | . . . . . 1 . . . . . . . . . . . . . . Uniques/NPCs Destroyed 4 | . . . . . 2 . . . . . . . 1 . . . . . 1 8R-AWN (-9/Exiles) EX-HEX (-9/Exiles) EX-DEC (-9/Exiles) EX-BIN (-9/Exiles) Data Miner (-6/Proximity Caves) Imprinter (-6/Zion) Combat | -11 -10 -10 -9 -9 -9 -8 -8 -8 -7 -7 -7 -7 -6 -6 -6 -6 -6 -6 -6 -------- Run | Scr Mat Min Mat Min Exi Min Mat Sto Fac Low Low Dat Pro Fac Was Fac Low Low Zio Damage Taken 2173 | 6 14 . 376 . 1558 . . 35 11 . . . . . . . . . 173 Core 1742 | 6 9 . 319 . 1250 . . 25 8 . . . . . . . . . 125 Absorbed by Shields . | . . . . . . . . . . . . . . . . . . . . Redirected to Core 1301 | . 9 . 197 . 953 . . 22 8 . . . . . . . . . 112 Core Remaining (%) 100 | 100 . 100 . . . 100 . 100 . . . . 100 . . . . . . Volleys Fired 215 | . 9 5 20 4 65 . 19 34 7 . 1 1 5 1 . 9 2 . 33 Largest 6 | . 6 6 6 6 6 . 1 1 1 . 1 1 1 1 . 1 1 . 1 Hottest 274 | . 245 245 256 274 274 . 30 30 . . . . 30 . . . . . . Shots Fired 415 | . 28 30 110 23 112 . 19 34 7 . 1 1 5 1 . 9 2 . 33 Gun 311 | . 28 30 110 19 92 . 17 14 . . . . 1 . . . . . . Cannon 22 | . . . . 4 18 . . . . . . . . . . . . . . Launcher . | . . . . . . . . . . . . . . . . . . . . Special 82 | . . . . . 2 . 2 20 7 . 1 1 4 1 . 9 2 . 33 Kinetic 128 | . 9 5 20 4 58 . 17 14 . . . . 1 . . . . . . Thermal 76 | . 6 5 32 8 25 . . . . . . . . . . . . . . Explosive . | . . . . . . . . . . . . . . . . . . . . Electromagnetic 129 | . 13 20 58 11 27 . . . . . . . . . . . . . . Robot Hit Streak 83 | . 14 23 42 . 59 . 64 83 16 . 17 18 23 24 . 30 4 . 20 Robot Miss Streak 1 | . 1 . 1 . 1 . . 1 . . . . . . . 1 . . 1 Penetration Max 2 | . . . . . 1 . 1 2 . . . . . . . . . . . Secondary Targets 5 | . 2 1 2 . . . . . . . . . . . . . . . . Max Gunslinging Chain 1 | . 1 1 1 . . . . . . . . . . . . . . . . Shots Hit Robots 270 | . 21 7 55 . 92 . 5 28 7 . 1 1 7 1 . 8 2 . 35 Core Hits 93 | . 7 7 29 . 38 . 2 8 . . . . 2 . . . . . . Critical Hits 32 | . . . . . 18 . 4 10 . . . . . . . . . . . Critical Kills 11 | . . . . . 5 . 2 4 . . . . . . . . . . . Critical Parts Destroyed 16 | . . . . . 9 . 2 5 . . . . . . . . . . . Melee Attacks 18 | . . . . . . . . . . . . . 2 1 . . . . 15 Impact . | . . . . . . . . . . . . . . . . . . . . Slashing 17 | . . . . . . . . . . . . . 2 1 . . . . 14 Piercing . | . . . . . . . . . . . . . . . . . . . . Sneak Attacks 2 | . . . . . . . . . . . . . 2 . . . . . . Combat Hostiles . | . . . . . . . . . . . . . . . . . . . . Follow-up Attacks . | . . . . . . . . . . . . . . . . . . . . Damage Inflicted 3930 | 12 293 116 1059 . 1581 . 90 279 . . . . 333 . . . . . 167 Guns 2876 | . 293 116 820 . 1258 . 90 279 . . . . 20 . . . . . . Cannons 316 | . . . . . 316 . . . . . . . . . . . . . . Explosions 239 | . . . 239 . . . . . . . . . . . . . . . . Melee 480 | . . . . . . . . . . . . . 313 . . . . . 167 Ramming 19 | 12 . . . . 7 . . . . . . . . . . . . . . Kinetic 1513 | . 102 . 75 . 947 . 90 279 . . . . 20 . . . . . . Thermal 919 | . 56 . 427 . 436 . . . . . . . . . . . . . . Explosive . | . . . . . . . . . . . . . . . . . . . . Electromagnetic 999 | . 135 116 557 . 191 . . . . . . . . . . . . . . Impact . | . . . . . . . . . . . . . . . . . . . . Slashing 480 | . . . . . . . . . . . . . 313 . . . . . 167 Piercing . | . . . . . . . . . . . . . . . . . . . . Highest Corruption 4 | . . . 3 3 4 . . . . . . . . . . . . . . Average Corruption 3 | . . . 3 3 3 . . . . . . . . . . . . . . Corruption Purged . | . . . . . . . . . . . . . . . . . . . . Effects 9 | . . . 3 2 4 . . . . . . . . . . . . . . Message Errors 3 | . . . 1 . 2 . . . . . . . . . . . . . . Matter Fused 1 | . . . . . 1 . . . . . . . . . . . . . . Heat Flow Errors 1 | . . . . 1 . . . . . . . . . . . . . . . Targeting Errors 2 | . . . 1 . 1 . . . . . . . . . . . . . . Weapon Failures 2 | . . . 1 1 . . . . . . . . . . . . . . . Overload Shots . | . . . . . . . . . . . . . . . . . . . . Overflow Damage 161 | . . . 81 . 4 . . . . . . . 76 . . . . . . Projectiles 4 | . . . . . 4 . . . . . . . . . . . . . . Explosions 81 | . . . 81 . . . . . . . . . . . . . . . . Melee 76 | . . . . . . . . . . . . . 76 . . . . . . Knockbacks 1 | 1 . . . . . . . . . . . . . . . . . . . Impact 1 | 1 . . . . . . . . . . . . . . . . . . . Kinetic . | . . . . . . . . . . . . . . . . . . . . Secondary . | . . . . . . . . . . . . . . . . . . . . Self-Inflicted Damage 68 | 6 . . 59 . 3 . . . . . . . . . . . . . . Shots 2 | . . . 2 . . . . . . . . . . . . . . . . Rammed 3 | 1 . . . . 2 . . . . . . . . . . . . . . Targets Rammed 3 | 1 . . . . 2 . . . . . . . . . . . . . . Kicked . | . . . . . . . . . . . . . . . . . . . . Crushed . | . . . . . . . . . . . . . . . . . . . . Highest Temperature 160 | . 156 160 . . . . . . . . . . . . . . . . . Average Temperature 70 | . 44 95 . . . . . . . . . . . . . . . . . Received Heat Transfer 213 | . . . 51 . 60 . . 27 12 . . . . . . . . . 63 Siege Activations . | . . . . . . . . . . . . . . . . . . . . Robots Corrupted . | . . . . . . . . . . . . . . . . . . . . Combat Hostiles . | . . . . . . . . . . . . . . . . . . . . Parts Fried 1 | . . 1 . . . . . . . . . . . . . . . . . Impact Corruptions . | . . . . . . . . . . . . . . . . . . . . Robots Melted . | . . . . . . . . . . . . . . . . . . . . Combat Hostiles . | . . . . . . . . . . . . . . . . . . . . Parts Melted 1 | . . . 1 . . . . . . . . . . . . . . . . Heat Transferred 1545 | . 148 . 694 . 703 . . . . . . . . . . . . . . Parts Sabotaged . | . . . . . . . . . . . . . . . . . . . . Parts Stolen . | . . . . . . . . . . . . . . . . . . . . Parts Stripped . | . . . . . . . . . . . . . . . . . . . . Power Chain Reactions 2 | . . . 2 . . . . . . . . . . . . . . . . Missiles Intercepted . | . . . . . . . . . . . . . . . . . . . . Alert | -11 -10 -10 -9 -9 -9 -8 -8 -8 -7 -7 -7 -7 -6 -6 -6 -6 -6 -6 -6 ------- Run | Scr Mat Min Mat Min Exi Min Mat Sto Fac Low Low Dat Pro Fac Was Fac Low Low Zio Peak Influence 332 | . 142 114 332 91 . . 118 146 186 . . . . 25 6 99 . . . Average Influence 87 | . 45 92 160 91 . . 24 94 131 . . . . 12 6 59 . . . Maximum Alert Level 1 | . . . 1 . . . . . . . . . . . . . . . . Low Security (%) 97 | 100 100 100 74 100 . 100 100 100 100 . . . . 100 100 100 . . . Level 1 2 | . . . 25 . . . . . . . . . . . . . . . . Level 2 . | . . . . . . . . . . . . . . . . . . . . Level 3 . | . . . . . . . . . . . . . . . . . . . . Level 4 . | . . . . . . . . . . . . . . . . . . . . Level 5 . | . . . . . . . . . . . . . . . . . . . . High Security . | . . . . . . . . . . . . . . . . . . . . Max Security . | . . . . . . . . . . . . . . . . . . . . Squads Dispatched 2 | . . . 1 . . . 1 . . . . . . . . . . . . Investigation . | . . . . . . . . . . . . . . . . . . . . Extermination . | . . . . . . . . . . . . . . . . . . . . Reinforcement 2 | . . . 1 . . . 1 . . . . . . . . . . . . Assault . | . . . . . . . . . . . . . . . . . . . . Garrison . | . . . . . . . . . . . . . . . . . . . . Intercept . | . . . . . . . . . . . . . . . . . . . . Construction Impeded . | . . . . . . . . . . . . . . . . . . . . Haulers Reinforced . | . . . . . . . . . . . . . . . . . . . . Stealth | -11 -10 -10 -9 -9 -9 -8 -8 -8 -7 -7 -7 -7 -6 -6 -6 -6 -6 -6 -6 --------- Run | Scr Mat Min Mat Min Exi Min Mat Sto Fac Low Low Dat Pro Fac Was Fac Low Low Zio Distress Signals 1 | . . . 1 . . . . . . . . . . . . . . . . Communications Jammed 40 | . . . . . . . . 39 . . . . . 1 . . . . . Distress Signals 39 | . . . . . . . . 38 . . . . . 1 . . . . . Times Spotted 148 | . 3 . 11 . 57 . 3 13 8 . 1 . 4 1 . 8 . . 39 Peak Tracking Total 13 | . 2 . 6 . 13 . 1 3 2 . 1 . 3 1 . 2 . . 5 Tactical Retreats 10 | . . . . . 8 . . . . . . . . . . . . . 2 Traps | -11 -10 -10 -9 -9 -9 -8 -8 -8 -7 -7 -7 -7 -6 -6 -6 -6 -6 -6 -6 ------- Run | Scr Mat Min Mat Min Exi Min Mat Sto Fac Low Low Dat Pro Fac Was Fac Low Low Zio Traps Triggered 1 | . . . . . . . . . . . . . . 1 . . . . . Indirectly . | . . . . . . . . . . . . . . . . . . . . Trap Hack Attempts . | . . . . . . . . . . . . . . . . . . . . Triggered . | . . . . . . . . . . . . . . . . . . . . Disarmed . | . . . . . . . . . . . . . . . . . . . . Reprogrammed . | . . . . . . . . . . . . . . . . . . . . Reused 2 | . . . . . . . . 1 . . . . . . . 1 . . . Traps Reconfigurated 26 | . . . . . . . . 10 12 . . . . 2 . 2 . . . Traps Extracted . | . . . . . . . . . . . . . . . . . . . . Installed . | . . . . . . . . . . . . . . . . . . . . Triggered 2 | . . . . . . . . 1 . . . . . . . 1 . . . Machines | -11 -10 -10 -9 -9 -9 -8 -8 -8 -7 -7 -7 -7 -6 -6 -6 -6 -6 -6 -6 ---------- Run | Scr Mat Min Mat Min Exi Min Mat Sto Fac Low Low Dat Pro Fac Was Fac Low Low Zio Machines Disabled 18 | . . . 2 . 7 . 1 3 1 . . . . . . 2 . . 2 Max in Single Turn 1 | . . . 1 . 1 . 1 1 . . . . . . . . . . 1 Machines Sabotaged . | . . . . . . . . . . . . . . . . . . . . Garrisons Compromised . | . . . . . . . . . . . . . . . . . . . . Overloaded Fab Kills . | . . . . . . . . . . . . . . . . . . . . Fab Network Shutdowns . | . . . . . . . . . . . . . . . . . . . . Hacking | -11 -10 -10 -9 -9 -9 -8 -8 -8 -7 -7 -7 -7 -6 -6 -6 -6 -6 -6 -6 --------- Run | Scr Mat Min Mat Min Exi Min Mat Sto Fac Low Low Dat Pro Fac Was Fac Low Low Zio Machines Accessed 17 | . . . 1 . 2 . 1 4 3 . . 3 . 1 . 1 1 . . Terminals 10 | . . . 1 . . . 1 4 2 . . . . 1 . 1 . . . Fabricators 1 | . . . . . . . . . 1 . . . . . . . . . . Repair Stations . | . . . . . . . . . . . . . . . . . . . . Recycling Units . | . . . . . . . . . . . . . . . . . . . . Scanalyzers . | . . . . . . . . . . . . . . . . . . . . Garrison Access . | . . . . . . . . . . . . . . . . . . . . Total Hacks 43 | . . . 1 . 2 . 3 6 18 . . 9 . 2 . 1 1 . . Successful 43 | . . . 1 . 2 . 3 6 18 . . 9 . 2 . 1 1 . . Failed . | . . . . . . . . . . . . . . . . . . . . Catastrophic . | . . . . . . . . . . . . . . . . . . . . Database Lockouts . | . . . . . . . . . . . . . . . . . . . . Manual 22 | . . . 1 . 1 . 3 5 9 . . . . 2 . 1 . . . Terminals 21 | . . . 1 . . . 3 6 8 . . . . 2 . 1 . . . Fabricators 10 | . . . . . . . . . 10 . . . . . . . . . . Repair Stations . | . . . . . . . . . . . . . . . . . . . . Recycling Units . | . . . . . . . . . . . . . . . . . . . . Scanalyzers . | . . . . . . . . . . . . . . . . . . . . Garrison Access . | . . . . . . . . . . . . . . . . . . . . Terminal Hacks 33 | . . . 1 . 2 . 3 6 8 . . 9 . 2 . 1 1 . . Record 2 | . . . . . 1 . . . . . . 1 . . . . . . . Part Schematic 9 | . . . . . . . . 1 4 . . 4 . . . . . . . Robot Schematic 1 | . . . . . . . . . . . . 1 . . . . . . . Prototype ID Bank 5 | . . . . . . . . 1 1 . . 3 . . . . . . . Open Door 3 | . . . . . . . . 2 . . . . . . . . 1 . . Level Access Points 3 | . . . . . . . 1 1 1 . . . . . . . . . . Branch Access Points 6 | . . . 1 . . . 1 1 1 . . . . 1 . 1 . . . Emergency Access Points 1 | . . . . . . . 1 . . . . . . . . . . . . Machine Index 2 | . . . . . . . . . 1 . . . . 1 . . . . . EX-Prototype ID Bank 1 | . . . . . 1 . . . . . . . . . . . . . . Fabricator Hacks 8 | . . . . . . . . . 8 . . . . . . . . . . Load Schematic 4 | . . . . . . . . . 4 . . . . . . . . . . Build 4 | . . . . . . . . . 4 . . . . . . . . . . Repair Station Hacks . | . . . . . . . . . . . . . . . . . . . . Recycling Unit Hacks . | . . . . . . . . . . . . . . . . . . . . Scanalyzer . | . . . . . . . . . . . . . . . . . . . . Garrison Access Hacks . | . . . . . . . . . . . . . . . . . . . . Unauthorized Hacks 4 | . . . . . . . . . 4 . . . . . . . . . . Terminals . | . . . . . . . . . . . . . . . . . . . . Fabricators 2 | . . . . . . . . . 2 . . . . . . . . . . Prioritize 1 | . . . . . . . . . 1 . . . . . . . . . . Siphon 1 | . . . . . . . . . 1 . . . . . . . . . . Repair Stations . | . . . . . . . . . . . . . . . . . . . . Recycling Units . | . . . . . . . . . . . . . . . . . . . . Scanalyzers . | . . . . . . . . . . . . . . . . . . . . Garrison Access . | . . . . . . . . . . . . . . . . . . . . Data Cores Recovered . | . . . . . . . . . . . . . . . . . . . . Used . | . . . . . . . . . . . . . . . . . . . . Hacking Detections 1 | . . . . . . . . . 1 . . . . . . . . . . Full Trace Events . | . . . . . . . . . . . . . . . . . . . . Feedback Events . | . . . . . . . . . . . . . . . . . . . . Feedback Blocked . | . . . . . . . . . . . . . . . . . . . . Robot Schematics Acquired 1 | . . . . . . . . . . . . 1 . . . . . . . Robots Built . | . . . . . . . . . . . . . . . . . . . . Matter . | . . . . . . . . . . . . . . . . . . . . Time . | . . . . . . . . . . . . . . . . . . . . Total Robot Build Rating . | . . . . . . . . . . . . . . . . . . . . Part Schematics Acquired 9 | . . . . . . . . 1 4 . . 4 . . . . . . . Parts Built 6 | . . . . . . . . . 6 . . . . . . . . . . Matter 661 | . . . . . . . . . 661 . . . . . . . . . . Time 115 | . . . . . . . . . 115 . . . . . . . . . . Total Part Build Rating 24 | . . . . . . . . . 24 . . . . . . . . . . Parts Repaired . | . . . . . . . . . . . . . . . . . . . . Time . | . . . . . . . . . . . . . . . . . . . . Parts Recycled . | . . . . . . . . . . . . . . . . . . . . Recycled Matter . | . . . . . . . . . . . . . . . . . . . . Retrieved Matter . | . . . . . . . . . . . . . . . . . . . . Retrieved Components . | . . . . . . . . . . . . . . . . . . . . Parts Scanalyzed . | . . . . . . . . . . . . . . . . . . . . Part Schematics Acquired . | . . . . . . . . . . . . . . . . . . . . Parts Damaged . | . . . . . . . . . . . . . . . . . . . . Bothacking | -11 -10 -10 -9 -9 -9 -8 -8 -8 -7 -7 -7 -7 -6 -6 -6 -6 -6 -6 -6 ------------ Run | Scr Mat Min Mat Min Exi Min Mat Sto Fac Low Low Dat Pro Fac Was Fac Low Low Zio Used RIF Installer . | . . . . . . . . . . . . . . . . . . . . Robots Hacked 1 | . . . . . . . . . . . . . . . . . . . 1 Non-combat . | . . . . . . . . . . . . . . . . . . . . Combat 1 | . . . . . . . . . . . . . . . . . . . 1 Robot Hacks Applied 1 | . . . . . . . . . . . . . . . . . . . 1 parse_system 1 | . . . . . . . . . . . . . . . . . . . 1 Relay Couplers Released . | . . . . . . . . . . . . . . . . . . . . Robots Rewired . | . . . . . . . . . . . . . . . . . . . . Allies Hacked . | . . . . . . . . . . . . . . . . . . . . Hacks Repelled . | . . . . . . . . . . . . . . . . . . . . Allies | -11 -10 -10 -9 -9 -9 -8 -8 -8 -7 -7 -7 -7 -6 -6 -6 -6 -6 -6 -6 -------- Run | Scr Mat Min Mat Min Exi Min Mat Sto Fac Low Low Dat Pro Fac Was Fac Low Low Zio Total Allies 91 | . . . . . . . 2 18 7 . 1 1 4 1 20 8 2 . 27 Largest Group 21 | . . . . . . . 2 13 6 . 1 1 3 1 21 9 2 . 13 Highest-Rated Group 688 | . . . . . . . 26 195 127 . 30 59 81 17 688 221 20 . 278 Highest-Rated Ally 59 | . . . . . . . 17 29 32 . 30 59 59 17 50 32 10 . 31 Total Orders 1 | . . . . . . . . . . . . . . . . . . . 1 GOTO 1 | . . . . . . . . . . . . . . . . . . . 1 Ally Attacks 185 | . . . . . . . . 20 32 . 1 . 2 . . 24 . . 106 Total Damage 3462 | . . . . . . . . 237 376 . 114 . 31 . . 549 . . 2155 Kills 38 | . . . . . . . . 2 4 . 1 . 1 . . 3 . . 27 Allies Corrupted 1 | . . . . . . . . . . . . . . . . . . . 1 Allies Melted 1 | . . . . . . . . . 1 . . . . . . . . . . Field Lobotomies 71 | . . . . . . . 2 18 7 . 1 1 4 1 . 8 2 . 27 Intel | -11 -10 -10 -9 -9 -9 -8 -8 -8 -7 -7 -7 -7 -6 -6 -6 -6 -6 -6 -6 ------- Run | Scr Mat Min Mat Min Exi Min Mat Sto Fac Low Low Dat Pro Fac Was Fac Low Low Zio Robot Analysis Total 115 | . . . . . . . . . . . . 115 . . . . . . . Derelict Logs Recovered 1 | . . . . . . . . . . . . . 1 . . . . . . Drone Launches . | . . . . . . . . . . . . . . . . . . . . Drone Recoveries . | . . . . . . . . . . . . . . . . . . . . Exploration | -11 -10 -10 -9 -9 -9 -8 -8 -8 -7 -7 -7 -7 -6 -6 -6 -6 -6 -6 -6 ------------- Run | Scr Mat Min Mat Min Exi Min Mat Sto Fac Low Low Dat Pro Fac Was Fac Low Low Zio Turns Passed 2770 | 38 100 100 140 60 508 16 112 268 260 68 86 55 112 26 24 135 103 49 510 Spaces Moved 4289 | 52 122 183 109 70 631 31 128 425 344 184 238 131 240 56 67 299 256 140 583 Core 1216 | 52 122 39 11 70 631 31 128 132 . . . . . . . . . . . Treads . | . . . . . . . . . . . . . . . . . . . . Legs . | . . . . . . . . . . . . . . . . . . . . Wheels . | . . . . . . . . . . . . . . . . . . . . Hover . | . . . . . . . . . . . . . . . . . . . . Flight 3073 | . . 144 98 . . . . 293 344 184 238 131 240 56 67 299 256 140 583 Fastest Speed 35 | 50 50 40 40 50 50 50 50 35 35 35 35 35 35 35 35 35 35 35 35 Average Speed 39 | 50 50 42 41 50 50 50 50 39 35 35 35 35 35 35 35 35 35 35 35 Slowest Speed 50 | 50 50 50 50 50 50 50 50 50 35 35 35 35 35 35 35 35 35 35 35 Overloaded Moves . | . . . . . . . . . . . . . . . . . . . . Propulsion Burnouts . | . . . . . . . . . . . . . . . . . . . . Robots Hopped 6 | . . . . . . . . 2 . . . . . 1 . 3 . . . Cave-ins Triggered 1 | . . . 1 . . . . . . . . . . . . . . . . Exploration Rate (%) 41 | 3 29 67 19 16 89 15 20 79 15 62 62 74 46 2 75 12 50 33 69 Regions Visited 19 Branch Regions 12 Pre-discovered Areas 23 | . . . . . . . . . . . . 23 . . . . . . . Known Exits Taken 17 | 1 1 1 1 1 1 1 1 1 1 1 1 1 1 . . 1 1 1 . Unknown Exits Taken . | . . . . . . . . . . . . . . . . . . . . Scrap Searched 3 | . . . . . . . . . . . . . . . . . 1 1 1 Spaces Dug 23 | . . . . 3 . . 17 . . . . . . 1 . . . . 2 Terrain Destroyed 85 | . . . 49 4 8 . 18 2 . . . . 1 1 . . . . 2 Melee 3 | . . . . . . . . . . . . . . 1 . . . . 2 Projectile 33 | . . . . 4 8 . 18 2 . . . . 1 . . . . . . AOE 49 | . . . 49 . . . . . . . . . . . . . . . . Actions | -11 -10 -10 -9 -9 -9 -8 -8 -8 -7 -7 -7 -7 -6 -6 -6 -6 -6 -6 -6 --------- Run | Scr Mat Min Mat Min Exi Min Mat Sto Fac Low Low Dat Pro Fac Was Fac Low Low Zio Total 4902 | 60 139 189 146 82 729 30 154 466 467 186 238 137 252 57 66 307 264 139 794 Wait 322 | . . . 9 9 1 . 8 4 112 3 . 6 3 . . 2 7 . 158 Move 4260 | 51 121 182 108 69 630 30 127 420 343 183 237 130 239 54 66 293 255 139 583 Hop 5 | . . . . . . . . 2 . . . . . 1 . 2 . . . Pick Up 10 | . 1 1 1 . 4 . . . . . . . . . . 1 . . 2 Fast Attach 37 | 7 5 1 4 . 9 . . 4 4 . . . 3 . . . . . . Attach 5 | . . . . . 3 . . . . . . . . . . . . . 2 Detach 2 | . . . . . 1 . . . . . . . . . . . . . 1 Swap 1 | . 1 . . . . . . . . . . . . . . . . . . Drop 24 | 1 2 . 4 . 14 . . 2 1 . . . . . . . . . . Fire 215 | . 9 5 20 4 65 . 19 34 7 . 1 1 5 1 . 9 2 . 33 Melee 18 | . . . . . . . . . . . . . 2 1 . . . . 15 Ram 3 | 1 . . . . 2 . . . . . . . . . . . . . . Kick . | . . . . . . . . . . . . . . . . . . . . Crush . | . . . . . . . . . . . . . . . . . . . . Escape Stasis . | . . . . . . . . . . . . . . . . . . . . Rewire . | . . . . . . . . . . . . . . . . . . . . Trap . | . . . . . . . . . . . . . . . . . . . . Miscellaneous . | . . . . . . . . . . . . . . . . . . . . Route ------- -11/Scrapyard -10/Materials (discovered 2 exits: Mat / *Min) -10/Mines -9/Materials -9/Mines (discovered 2 exits: Mat / *Exi) -9/Exiles (discovered 2 exits: *Min x2) -8/Mines -8/Materials (discovered 4 exits: Fac x3 / *Sto) -8/Storage (discovered 2 exits: *Fac / *Rec) -7/Factory (discovered 6 exits: Fac x4 / *Low x2) -7/Lower Caves -7/Lower Caves (discovered 2 exits: Fac / *Dat) -7/Data Miner -6/Proximity Caves -6/Factory (discovered 3 exits: Fac / Low x2) -6/Waste -6/Factory (discovered 2 exits: *Low x2) -6/Lower Caves -6/Lower Caves -6/Zion (discovered 2 exits: *Dee / *Pro) History --------- Turn | Location | Event 7 | -11/Scrapyard | Identified exit to Materials 7 | -11/Scrapyard | Discovered exit to Materials (range 15) 11 | -11/Scrapyard | Upgraded with Utility slot (x17) 11 | -11/Scrapyard | Upgraded with Weapon slot (x5) 39 | -11/Scrapyard | Entered Materials 77 | -10/Materials | Identified exit to Materials 77 | -10/Materials | Discovered exit to Materials (range 13) 112 | -10/Materials | Identified exit to Mines 112 | -10/Materials | Discovered exit to Mines (range 12) 139 | -10/Materials | Entered Mines 223 | -10/Mines | Discovered exit to Materials (range 14) 223 | -10/Mines | A weapon hastily lodged in a ceiling crevice suddenly fell to the ground 239 | -10/Mines | Entered Materials 241 | -9/Materials | Reached level 2 241 | -9/Materials | Reached level 3 241 | -9/Materials | Reached level 4 299 | -9/Materials | Identified exit to Mines 310 | -9/Materials | Build established: Wizard-Scout 365 | -9/Materials | Crushed by falling debris 379 | -9/Materials | Entered Mines 381 | -9/Mines | Reached level 5 408 | -9/Mines | Identified exit to Exiles 408 | -9/Mines | Discovered exit to Exiles (range 12) 410 | -9/Mines | Identified exit to Materials 410 | -9/Mines | Discovered exit to Materials (range 10) 439 | -9/Mines | Entered Exiles 446 | -9/Exiles | Identified exit to Mines 446 | -9/Exiles | Discovered exit to Mines (range 20) 452 | -9/Exiles | Met 8R-AWN 461 | -9/Exiles | Met EX-HEX 477 | -9/Exiles | Met EX-BIN 482 | -9/Exiles | Aligned with FarCom system 483 | -9/Exiles | Given EX-Vault access code 494 | -9/Exiles | Opened EX-Vault 499 | -9/Exiles | Found Field Lobotomy Kit 502 | -9/Exiles | Found Trap Reconfigurator 504 | -9/Exiles | Found 0b10 Alert Chip 521 | -9/Exiles | Warned to stay clear of 0b10 Research branches 531 | -9/Exiles | Met EX-DEC 569 | -9/Exiles | Visited The Gauntlet 676 | -9/Exiles | Attacked by the Exiles 738 | -9/Exiles | Destroyed 7 combat bots 779 | -9/Exiles | Destroyed 8R-AWN 781 | -9/Exiles | Found Prototype Ballistic Gun 781 | -9/Exiles | Identified 8R-AWN's Boregun 783 | -9/Exiles | Found Prototype Processor 783 | -9/Exiles | Identified Exp. Targeting Computer 786 | -9/Exiles | Found Prototype Protection 786 | -9/Exiles | Identified 8R-AWN's Armor/EX 791 | -9/Exiles | Found Prototype Device 791 | -9/Exiles | Identified AS-neutralizer No. 17b 833 | -9/Exiles | Destroyed EX-HEX 845 | -9/Exiles | Destroyed EX-DEC 861 | -9/Exiles | Destroyed EX-BIN 867 | -9/Exiles | Found Deploy-a-Sentry 943 | -9/Exiles | Discovered exit to Mines (range 10) 947 | -9/Exiles | Stole three prototypes: Field Lobotomy Kit, Trap Reconfigurator, Deploy-a-Sentry 947 | -9/Exiles | Entered Mines 949 | -8/Mines | Reached level 6 957 | -8/Mines | Discovered exit to Materials (range 12) 963 | -8/Mines | Entered Materials 965 | -8/Materials | Reached level 7 969 | -8/Materials | Assimilated O-16 Technician with FLK Orb 1008 | -8/Materials | Identified exit to Storage 1008 | -8/Materials | Identified exit to Factory 1043 | -8/Materials | Assimilated W-25 Informer with FLK Orb 1057 | -8/Materials | Build established: Wizard-Mutant 1075 | -8/Materials | Entered Storage 1075 | -8/Storage | Accompanied by 1 ally 1077 | -8/Storage | Reached level 8 1094 | -8/Storage | Assimilated Y-45 Defender with FLK Orb 1102 | -8/Storage | Assimilated G-47 Trooper with FLK Orb 1121 | -8/Storage | Used back door to open Recycling access 1121 | -8/Storage | Identified exit to Recycling 1121 | -8/Storage | Discovered exit to Recycling (range 5) 1129 | -8/Storage | Assimilated O-16 Technician with FLK Orb 1132 | -8/Storage | Assimilated G-47 Trooper with FLK Orb 1146 | -8/Storage | Assimilated Y-45 Defender with FLK Orb 1158 | -8/Storage | Assimilated G-50 Soldier with FLK Orb 1161 | -8/Storage | Assimilated G-47 Trooper with FLK Orb 1198 | -8/Storage | Assimilated O-16 Technician with FLK Orb 1228 | -8/Storage | Assimilated Y-45 Defender with FLK Orb 1237 | -8/Storage | Assimilated O-16 Technician with FLK Orb 1259 | -8/Storage | Assimilated Y-45 Defender with FLK Orb 1277 | -8/Storage | Assimilated G-47 Trooper with FLK Orb 1283 | -8/Storage | Assimilated G-47 Trooper with FLK Orb 1294 | -8/Storage | Assimilated Y-45 Defender with FLK Orb 1309 | -8/Storage | Assimilated S-10 Pest with FLK Orb 1312 | -8/Storage | Assimilated S-10 Pest with FLK Orb 1315 | -8/Storage | Assimilated S-10 Pest with FLK Orb 1318 | -8/Storage | Assimilated W-25 Informer with FLK Orb 1343 | -8/Storage | Entered Factory 1345 | -7/Factory | Reached level 9 1345 | -7/Factory | Reached level 10 1352 | -7/Factory | Identified exit to Lower Caves 1352 | -7/Factory | Identified exit to Factory 1366 | -7/Factory | Assimilated Y-54 Guardian with FLK Orb 1377 | -7/Factory | Assimilated W-25 Informer with FLK Orb 1388 | -7/Factory | Assimilated O-24 Administrator with FLK Orb 1398 | -7/Factory | Assimilated G-47 Trooper with FLK Orb 1401 | -7/Factory | Assimilated G-50 Soldier with FLK Orb 1419 | -7/Factory | Assimilated W-25 Informer with FLK Orb 1434 | -7/Factory | Assimilated G-47 Trooper with FLK Orb 1478 | -7/Factory | Fabricated Exp. Utility Shielding (x1) 1496 | -7/Factory | Fabricated Adv. Signal Interpreter (x2) 1536 | -7/Factory | Fabricated Exp. Terrain Scanner (x1) 1557 | -7/Factory | Fabricated Greatsword (x2) 1603 | -7/Factory | Entered Lower Caves 1656 | -7/Lower Caves | Identified exit to Lower Caves 1656 | -7/Lower Caves | Discovered exit to Lower Caves (range 29) 1671 | -7/Lower Caves | Entered another Lower Caves area 1673 | -7/Lower Caves | Discovered exit to Factory (range 9) 1673 | -7/Lower Caves | Reached level 11 1683 | -7/Lower Caves | Assimilated L-41 Fighter with FLK Orb 1728 | -7/Lower Caves | Identified exit to Data Miner 1728 | -7/Lower Caves | Discovered exit to Data Miner (range 30) 1728 | -7/Lower Caves | Encountered a Warlord checkpoint 1757 | -7/Lower Caves | Entered Data Miner 1757 | -7/Data Miner | Identified exit to Proximity Caves 1757 | -7/Data Miner | Discovered exit to Proximity Caves (range 6) 1761 | -7/Data Miner | Met Data Miner 1772 | -7/Data Miner | Acquired the access code to Warlord's prototype stash 1777 | -7/Data Miner | Received God Mode back door access code from Data Miner 1780 | -7/Data Miner | Assimilated Data Miner with FLK Orb 1796 | -7/Data Miner | Reached level 12 1796 | -7/Data Miner | Interfaced with the Data Conduit 1812 | -7/Data Miner | Entered Proximity Caves 1812 | -6/Proximity Caves | Accompanied by 1 ally 1814 | -6/Proximity Caves | Reached level 13 1818 | -6/Proximity Caves | Destroyed Data Miner 1822 | -6/Proximity Caves | Found Prototype Hackware 1822 | -6/Proximity Caves | Identified Quantum Router 1824 | -6/Proximity Caves | Found Prototype Hackware 1824 | -6/Proximity Caves | Identified System Mapper 1826 | -6/Proximity Caves | Found Prototype Hackware 1826 | -6/Proximity Caves | Identified Deep Network Scanner 1843 | -6/Proximity Caves | Learned 4 Factory zone layouts 1857 | -6/Proximity Caves | Assimilated B-48 Gladiator with FLK Orb 1862 | -6/Proximity Caves | Assimilated B-48 Gladiator with FLK Orb 1865 | -6/Proximity Caves | Attracted the attention of an 0b10 checkpoint 1865 | -6/Proximity Caves | Assimilated G-50 Soldier with FLK Orb 1866 | -6/Proximity Caves | Build established: Wizard-Ninja 1868 | -6/Proximity Caves | Assimilated Y-54 Guardian with FLK Orb 1910 | -6/Proximity Caves | Discovered exit to Factory (range 30) 1924 | -6/Proximity Caves | Entered Factory 1925 | -6/Factory | Identified exit to Factory 1926 | -6/Factory | Loaded intel: 254 machine locations 1926 | -6/Factory | Reached level 14 1941 | -6/Factory | Identified exit to Lower Caves 1944 | -6/Factory | Assimilated W-25 Informer with FLK Orb 1950 | -6/Factory | Sucked down chute 1950 | -6/Factory | Entered Waste 1951 | -6/Waste | Joined by Warlord forces that had cleared the area 1962 | -6/Waste | Identified exit to Factory 1962 | -6/Waste | Discovered exit to Factory (range 29) 1970 | -6/Waste | 1 allies followed down the chute 1974 | -6/Waste | Entered Factory 1974 | -6/Factory | Accompanied by 6 allies 1975 | -6/Factory | Loaded intel: 236 machine locations 1983 | -6/Factory | Assimilated W-25 Informer with FLK Orb 2011 | -6/Factory | Assimilated W-25 Informer with FLK Orb 2016 | -6/Factory | Assimilated G-50 Soldier with FLK Orb 2022 | -6/Factory | Assimilated G-50 Soldier with FLK Orb 2037 | -6/Factory | Assimilated W-25 Informer with FLK Orb 2070 | -6/Factory | Assimilated Y-54 Guardian with FLK Orb 2085 | -6/Factory | Assimilated Y-54 Guardian with FLK Orb 2089 | -6/Factory | Assimilated B-48 Gladiator with FLK Orb 2109 | -6/Factory | Entered Lower Caves 2111 | -6/Lower Caves | Reached level 15 2178 | -6/Lower Caves | Assimilated as-05178 with FLK Orb 2181 | -6/Lower Caves | Assimilated as-17231 with FLK Orb 2205 | -6/Lower Caves | Identified exit to Lower Caves 2205 | -6/Lower Caves | Discovered exit to Lower Caves (range 18) 2212 | -6/Lower Caves | Entered another Lower Caves area 2244 | -6/Lower Caves | Encountered a Warlord checkpoint 2247 | -6/Lower Caves | Identified exit to Zion 2247 | -6/Lower Caves | Discovered exit to Zion (range 20) 2261 | -6/Lower Caves | Entered Zion 2268 | -6/Zion | Identified exit to Proximity Caves 2268 | -6/Zion | Discovered exit to Proximity Caves (range 27) 2344 | -6/Zion | Identified exit to Deep Caves 2344 | -6/Zion | Discovered exit to Deep Caves (range 28) 2351 | -6/Zion | Found Prototype Device 2352 | -6/Zion | Identified Phasing AFG 2369 | -6/Zion | Gained Derelict followers 2436 | -6/Zion | Saw the warning signs outside the Deep Caves entrance 2455 | -6/Zion | Assimilated GS-02Z(M) with FLK Orb 2456 | -6/Zion | Attacked by Zionites 2459 | -6/Zion | Assimilated 9S-U27(i) with FLK Orb 2463 | -6/Zion | Assimilated I8-UWS(b) with FLK Orb 2561 | -6/Zion | Assimilated 6C-F0I(z) with FLK Orb 2569 | -6/Zion | Assimilated 69-PER(z) with FLK Orb 2572 | -6/Zion | Assimilated X0-5M0(z) with FLK Orb 2575 | -6/Zion | Assimilated XY-GGL(z) with FLK Orb 2582 | -6/Zion | Assimilated BE-PB3(M) with FLK Orb 2588 | -6/Zion | Assimilated 1J-31M(z) with FLK Orb 2594 | -6/Zion | Assimilated G7-16X(z) with FLK Orb 2599 | -6/Zion | Assimilated 77-DTJ(z) with FLK Orb 2605 | -6/Zion | Assimilated VR-MMZ(g) with FLK Orb 2608 | -6/Zion | Assimilated JM-J57(z) with FLK Orb 2620 | -6/Zion | Assimilated QB-KZD(z) with FLK Orb 2629 | -6/Zion | Assimilated PB-MF8(l) with FLK Orb 2632 | -6/Zion | Assimilated G6-0Z0(z) with FLK Orb 2635 | -6/Zion | Assimilated FK-ZJ1(z) with FLK Orb 2638 | -6/Zion | Assimilated YQ-0TJ(z) with FLK Orb 2641 | -6/Zion | Assimilated VS-Z9A(z) with FLK Orb 2653 | -6/Zion | Assimilated JB-3CC(z) with FLK Orb 2656 | -6/Zion | Assimilated NA-WA9(z) with FLK Orb 2659 | -6/Zion | Assimilated SK-2MI(z) with FLK Orb 2663 | -6/Zion | Assimilated N1-UPB(z) with FLK Orb 2665 | -6/Zion | Assimilated OI-C30(z) with FLK Orb 2669 | -6/Zion | Spotted 6X-P1H(B) 2679 | -6/Zion | Assimilated N4-FEJ(z) with FLK Orb 2683 | -6/Zion | Assimilated GC-ZSK(z) with FLK Orb 2686 | -6/Zion | Assimilated WB-0CB(z) with FLK Orb 2711 | -6/Zion | 12-ASH came to Zion's defense 2771 | -6/Zion | Self-destructed Last Messages --------------- 02683_ GC-ZSK(z) assimilated. 02683_ N4-FEJ(z) destroyed. 02683_ GC-ZSK(z) destroyed. 02686_ WB-0CB(z) assimilated. 02687_ NP-PV2(z) heat damages Mak. Leg. 02687_ NP-PV2(z) destroyed. 02688_ WP-KJI(z) destroyed. 02690_ Mak. Leg severed. 02691_ M6-Y9T(z) destroyed. 02706_ CA-8F7(z) pulls a Mak. Shrapnel Gun out of the Twisted Machinery. 02710_ WB-0CB(z) destroyed. 02711_ 12-ASH: "Who are you to come after my hometown?" 02719_ CA-8F7(z) destroyed. 02732_ C1-Y4I(z) emerges from the Twisted Machinery. 02756_ Jacked 12-ASH... >>parse_system Reading system data... New IDs: 12-ASH's Boomstick 02757_ 12-ASH repels assimilation attempt. Map ----- +----------------------------------------------------+ | """"" """ """###################### | | """" ""#"##################### | | """ "" "#"###################### | | """ """"""" """"##################### | | """"""""""" """"""################### | | """" * """##"############## | | "" """"" %/ """""############## | | "" """""""" = ""############## | | / M "#"############# | | ""#"############# | | * """""""" """############## | | " "" "% """""#"" """"############# | | """ """ """"""" = ""#"" """############# | | """ """""""##""" ""#" ""############## | | """""""##""##""" """"" """############# | | "###"""######""" ""#""""""""############# | | "###"#########"" "" """"#"#"""#"############/ | | #############"" " """######"#############! | | ##############"" g """#####################[= | | ##############""" """"""##################### | | ###############""" """""###################### | | ##############"#"" z """ "###################### | | ################"" g """""###"############## | | ################"" """""#""####BB"######## | | ################"" " """"""###BB""""""""" | | #################" " @ """" ### """"""""" | | #################" " """=% "" # | | ################"" """" | | ###############"" !""""" | | ################" !%!""""" "# | | ################" ! """"" """### """"""""" | | ###############"" ""#""""####BB""""""""" | | ###############"" """""""####BB"######## | | ###############"" """""""############## | | ##############"" "################ | | ###############" " ""############### | | ###############" "#"############## | | ##############"" """"############# | | ###############" =% ""#"############ | | ##########"##""" !=! ""############# | | ##########"""#"" *%/*%"" ""############# | | ########"#"""""" %===%=""" """############# | | ""#"#"#"#"" """ !=%=/ """""""############## | | "#""##"""" "" /=%= """"#""############### | | """"""""" ""[%[ """##"""############## | | z "#"%%= """##"################ | | ##" % """""""################ | | """ ="""" ""################ | | """""" """###"""""#" %""" "################ | | """"""""""""""" "################ | +----------------------------------------------------+ Best States ------------- Heat Dissipation 277 Energy Generation 300 Energy Capacity 1000 Matter Stores 300 Matter Capacity 300 Sight Range 26 Robot Scan Range 50 Terrain Scan Range 30 Terrain Scan Density 4010 Jamming Range 16 Additional Mass Support 12 Armor Coverage 1000 Resistance: KI 55 Resistance: TH 55 Resistance: EX 100 Resistance: EM 35 Resistance: I 35 Resistance: S 35 Resistance: P 35 Core Shielding 20 Utility Shielding 90 Evasion (%) 63 Targeting Accuracy 12 Core Analysis 10 Offensive Hacking 585 Defensive Hacking 230 Item Schematics ----------------- Imp. Signal Interpreter | -8/Storage | Hacked Exp. Utility Shielding | -7/Factory | Hacked Exp. Terrain Scanner | -7/Factory | Hacked Greatsword | -7/Factory | Hacked Adv. Signal Interpreter | -7/Factory | Hacked Kinetic Spear | -7/Data Miner | Free Plasma Sword | -7/Data Miner | Free Exp. ECM Suite | -7/Data Miner | Free Exp. Transmission Jammer | -7/Data Miner | Free Robot Schematics ------------------ I-47 Archangel | -7/Data Miner | Free Fabricated ------------ Exp. Utility Shielding | x1 | -7/Factory Adv. Signal Interpreter | x2 | -7/Factory Exp. Terrain Scanner | x1 | -7/Factory Greatsword | x2 | -7/Factory Alien Tech Used ----------------- None Achievements -------------- More Power To You Challenges ------------ None RPGLIKE | -11 -10 -10 -9 -9 -9 -8 -8 -8 -7 -7 -7 -7 -6 -6 -6 -6 -6 -6 -6 --------- Run | Scr Mat Min Mat Min Exi Min Mat Sto Fac Low Low Dat Pro Fac Was Fac Low Low Zio Levels Raised 14 | . . . 3 1 . 1 1 1 2 . 1 1 1 1 . . 1 . . XP Earned 28311 | 6000 635 750 4582 500 350 843 2249 1393 3000 500 617 2150 1414 1500 200 128 500 500 500 XP Spent 6120 | -13200 . . 19320 . . . . . . . . . . . . . . . . Upgrades 537 | 495 . . 42 . . . . . . . . . . . . . . . . Utility Slot 17 | 17 . . . . . . . . . . . . . . . . . . . Weapon Slot 5 | 5 . . . . . . . . . . . . . . . . . . . Heat Dissipation 42 | . . . 42 . . . . . . . . . . . . . . . . Energy Generation 59 | 59 . . . . . . . . . . . . . . . . . . . Energy Storage 18 | 18 . . . . . . . . . . . . . . . . . . . Mass Support 60 | 60 . . . . . . . . . . . . . . . . . . . Inventory Capacity 30 | 30 . . . . . . . . . . . . . . . . . . . Sight Range 10 | 10 . . . . . . . . . . . . . . . . . . . Sensor Range 25 | 25 . . . . . . . . . . . . . . . . . . . Terrain Scan Density 40 | 40 . . . . . . . . . . . . . . . . . . . Ranged Accuracy 42 | 42 . . . . . . . . . . . . . . . . . . . Melee Accuracy 20 | 20 . . . . . . . . . . . . . . . . . . . Hack Attack % 104 | 104 . . . . . . . . . . . . . . . . . . . Hack Defense % 41 | 41 . . . . . . . . . . . . . . . . . . . KI Resistance % 4 | 4 . . . . . . . . . . . . . . . . . . . TH Resistance % 4 | 4 . . . . . . . . . . . . . . . . . . . EX Resistance % 4 | 4 . . . . . . . . . . . . . . . . . . . KI Damage % 4 | 4 . . . . . . . . . . . . . . . . . . . TH Damage % 4 | 4 . . . . . . . . . . . . . . . . . . . EX Damage % 4 | 4 . . . . . . . . . . . . . . . . . . . Protomatter Created 98 | . 14 . . . 40 . 44 . . . . . . . . . . . . Protomatter Decayed 442 | . . . . . 35 . . 94 99 . 86 . 20 . . . . . 108 Game ------ Seed ImpulseWeightTorch Manual? 0 Play Time 01:11:44 Cumulative 221.2 hours Start 2019.12.17 @ 11:17:13 End 2019.12.17 @ 17:37:55 Sessions 1 Manual Loads 0 Difficulty Explorer Special Mode Winter2019/RPGLIKE Game No. 174 Rogue 4 Adventurer 0 Explorer 170 Win Type - Total 31 Types 12/9/3/1/3/1/2 Lore% 92 Gallery% 92 Achievement% 90 Wizard Run 0 Options --------- ASCII 0 Keyboard 0 Movement Mouse Keybinds 0 Fullscreen 0 Font 16/Dina Map View 76x50 Tactical HUD 1 Map Filters NONE Filters NONE Steam 1 RUN: a7f5607b-b971-4a2e-8c89-dca3e9cf7b70